[Event "Bamberg-Open 2019"]
[Site "Bamberg"]
[Date "2019.05.30"]
[Round "3.17"]
[White "Kues, Jarl-Hendrik"]
[Black "Johansson, Jukka"]
[Result "1-0"]
[ECO "D00"]
[WhiteElo "2137"]
[BlackElo "2071"]
[Annotator "ChessBase"]
[PlyCount "121"]
[EventDate "2019.05.12"]
[EventType "swiss"]
[EventCountry "GER"]
[SourceTitle "playchess.com"]
[Source "ChessBase"]
[SourceQuality "1"]
[TimeControl "40/5400+30:900+30"]

1. d4 {[%emt 0:00:00]} d5 {[%emt 0:00:00]} 2. Bf4 {[%emt 0:00:00]} Nf6 {[%emt 0:00:10]} 3. e3 {[%emt 0:00:00]} e6 {[%emt 0:00:18]} 4. c3 {[%emt 0:00:21]} Bd6 {[%emt 0:00:31]} 5. Bg3 {[%emt 0:00:07]} O-O {[%emt 0:00:30]} 6. Bd3 {[%emt 0:00:50]} b6 {[%emt 0:00:43]} 7. Nf3 {[%emt 0:00:15]} Bb7 {[%emt 0:01:07]} 8. Nbd2 {[%emt 0:00:29]} Ne4 {[%emt 0:03:24]} 9. Qc2 {[%emt 0:04:28]} f5 {[%emt 0:00:50]} 10. Ne5 {[%emt 0:00:26]} Nd7 {[%emt 0:02:02]} 11. Nxd7 {[%emt 0:04:23]} Qxd7 {[%emt 0:00:28]} 12. Nf3 {[%emt 0:00:03]} c5 {[%emt 0:03:19]} 13. Bxd6 {[%emt 0:01:28]} Qxd6 {[%emt 0:03:55]} 14. O-O {[%emt 0:00:52]} a5 {[%emt 0:04:13]} 15. Qe2 {[%emt 0:03:30]} Nf6 {[%emt 0:09:49]} 16. a4 {[%emt 0:01:11]} c4 {[%emt 0:05:56]} 17. Bc2 {[%emt 0:00:23]} Ba6 {[%emt 0:00:53]} 18. Ne5 {[%emt 0:02:03]} Rfb8 {[%emt 0:01:11]} 19. Ra2 {[%emt 0:02:54]} Ra7 {[%emt 0:01:49]} 20. Rfa1 {[%emt 0:00:58]} Rc8 {[%emt 0:02:22]} 21. f3 {[%emt 0:06:40]} Nd7 {[%emt 0:03:57]} 22. Nxd7 {[%emt 0:09:52]} Qxd7 {[%emt 0:02:01]} 23. e4 {[%emt 0:03:19]} Raa8 {[%emt 0:10:59]} 24. Re1 {[%emt 0:04:21]} Re8 {[%emt 0:02:25]} 25. Raa1 {[%emt 0:01:02]} Bb7 {[%emt 0:05:35]} 26. exf5 {[%emt 0:08:11]} exf5 {[%emt 0:01:00]} 27. Qd2 {[%emt 0:00:02]} g6 {[%emt 0:06:48]} 28. Re5 {[%emt 0:22:49]} Re6 {[%emt 0:09:45]} 29. Rae1 {[%emt 0:05:22]} Rae8 {[%emt 0:02:10]} 30. Kf2 {[%emt 0:04:32]} Bc6 {[%emt 0:00:44]} 31. Rxe6 {[%emt 0:08:52]} Rxe6 {[%emt 0:00:12]} 32. Rxe6 {[%emt 0:00:02]} Qxe6 {[%emt 0:00:11]} 33. Qf4 {[%emt 0:00:05]} Qe8 {[%emt 0:04:13]} 34. Qd6 {[%emt 0:00:58]} Kg7 {[%emt 0:02:14]} 35. Qc7+ {[%emt 0:01:12]} Kh6 {[%emt 0:00:34]} 36. Qf4+ {[%emt 0:01:54]} Kg7 {[%emt 0:00:09]} 37. Qc7+ {[%emt 0:00:01]} Kh6 {[%emt 0:00:29]} 38. Qxb6 {[%emt 0:01:39]} Bxa4 {[%emt 0:00:11]} 39. Bxa4 {[%emt 0:00:07]} Qxa4 {[%emt 0:00:06]} 40. Qb8 {[%emt 0:00:08]} Qc2+ {[%emt 0:03:13]} 41. Kg3 {[%emt 0:16:22]} g5 {[%emt 0:24:18]} 42. Qf8+ {[%emt 0:00:00]} Kg6 {[%emt 0:00:00]} 43. Qe8+ {[%emt 0:00:00]} Kg7 {[%emt 0:00:00]} 44. Qe5+ {[%emt 0:00:00]} Kg6 {[%emt 0:00:00]} 45. Qe6+ {[%emt 0:00:00]} Kg7 {[%emt 0:00:00]} 46. Qe7+ {[%emt 0:00:00]} Kg6 {[%emt 0:00:00]} 47. Qe6+ {[%emt 0:00:55]} Kg7 {[%emt 0:00:00]} 48. Qxd5 {[%emt 0:01:51]} h5 {[%emt 0:00:00]} 49. Qe5+ {[%emt 0:01:01]} Kg6 {[%emt 0:00:00]} 50. Qe6+ {[%emt 0:00:07]} Kg7 {[%emt 0:00:00]} 51. Qe7+ {[%emt 0:00:47]} Kg6 {[%emt 0:00:00]} 52. Qd6+ {[%emt 0:00:50]} Kg7 {[%emt 0:00:00]} 53. Qc7+ {[%emt 0:00:48]} Kg6 {[%emt 0:00:12]} 54. Qc6+ {[%emt 0:02:04]} Kg7 {[%emt 0:00:09]} 55. h4 {[%emt 0:00:56]} gxh4+ {[%emt 0:01:14]} 56. Kxh4 {[%emt 0:00:06]} Qxg2 {[%emt 0:00:29]} 57. Qd7+ {[%emt 0:00:46]} Kf6 {[%emt 0:00:30]} 58. Qd6+ {[%emt 0:00:21]} Kf7 {[%emt 0:00:13]} 59. Qc7+ {[%emt 0:00:31]} Kf6 {[%emt 0:00:11]} 60. Qe5+ {[%emt 0:00:16]} Kf7 {[%emt 0:01:38]} 61. Qxf5+ {[%emt 0:00:23]} 1-0

[Event "Bamberg-Open 2019"]
[Site "Bamberg"]
[Date "2019.05.30"]
[Round "3.18"]
[White "Ruffenach, Alain"]
[Black "Troyke, Christian"]
[Result "1/2-1/2"]
[ECO "E91"]
[WhiteElo "1936"]
[BlackElo "2328"]
[Annotator "ChessBase"]
[PlyCount "77"]
[EventDate "2019.05.12"]
[EventType "swiss"]
[EventCountry "GER"]
[SourceTitle "playchess.com"]
[Source "ChessBase"]
[SourceQuality "1"]
[TimeControl "40/5400+30:900+30"]

1. d4 {[%emt 0:00:00]} g6 {[%emt 0:00:00]} 2. c4 {[%emt 0:00:00]} Bg7 {[%emt 0:00:00]} 3. Nc3 {[%emt 0:00:00]} Nf6 {[%emt 0:00:00]} 4. e4 {[%emt 0:00:00]} O-O {[%emt 0:00:00]} 5. Nf3 {[%emt 0:00:18]} d6 {[%emt 0:00:06]} 6. Be2 {[%emt 0:00:23]} c5 {[%emt 0:00:48]} 7. d5 {[%emt 0:02:40]} e6 {[%emt 0:00:14]} 8. O-O {[%emt 0:00:40]} Re8 {[%emt 0:00:07]} 9. Bd3 {[%emt 0:05:55]} exd5 {[%emt 0:02:17]} 10. exd5 {[%emt 0:00:11]} Bg4 {[%emt 0:00:53]} 11. h3 {[%emt 0:01:48]} Bxf3 {[%emt 0:00:07]} 12. Qxf3 {[%emt 0:00:02]} Nbd7 {[%emt 0:04:45]} 13. Bg5 {[%emt 0:02:08]} Qb6 {[%emt 0:03:14]} 14. Rab1 {[%emt 0:01:18]} Ne5 {[%emt 0:00:55]} 15. Qd1 {[%emt 0:00:02]} Nfd7 {[%emt 0:04:18]} 16. Be2 {[%emt 0:01:00]} f5 {[%emt 0:00:36]} 17. Be3 {[%emt 0:12:50]} Qd8 {[%emt 0:02:59]} 18. Qd2 {[%emt 0:00:25]} Nf7 {[%emt 0:09:11]} 19. Rbe1 {[%emt 0:01:49]} a6 {[%emt 0:00:52]} 20. Bd1 {[%emt 0:08:50]} Qf6 {[%emt 0:09:28]} 21. Ba4 {[%emt 0:09:20]} Re7 {[%emt 0:08:57]} 22. Bxd7 {[%emt 0:01:39]} Rxd7 {[%emt 0:00:06]} 23. Bf4 Qh4 {[%emt 0:05:01]} 24. Na4 {[%emt 0:13:16]} Qd8 {[%emt 0:01:23]} 25. Nc3 {[%emt 0:02:34]} Ne5 {[%emt 0:05:02]} 26. b3 {[%emt 0:04:35]} Qa5 {[%emt 0:01:06]} 27. Na4 {[%emt 0:01:25]} Qc7 {[%emt 0:02:18]} 28. Nb2 {[%emt 0:07:30]} Re7 {[%emt 0:03:01]} 29. Bxe5 {[%emt 0:01:30]} Bxe5 {[%emt 0:01:02]} 30. Nd3 {[%emt 0:00:15]} Rae8 {[%emt 0:00:18]} 31. Nxe5 {[%emt 0:01:43]} Rxe5 {[%emt 0:00:06]} 32. Rxe5 {[%emt 0:00:14]} Rxe5 {[%emt 0:00:08]} 33. Re1 {[%emt 0:02:16]} Qe7 {[%emt 0:00:09]} 34. Kf1 {[%emt 0:00:08]} Kf7 {[%emt 0:01:23]} 35. g3 {[%emt 0:02:21]} Re4 {[%emt 0:01:26]} 36. Re2 {[%emt 0:01:30]} Qe5 {[%emt 0:01:28]} 37. Qe1 {[%emt 0:00:25]} Rxe2 {[%emt 0:05:06]} 38. Qxe2 {[%emt 0:00:05]} Kf6 {[%emt 0:00:09]} 39. f4 {[%emt 0:01:11]} 1/2-1/2

[Event "Bamberg-Open 2019"]
[Site "Bamberg"]
[Date "2019.05.30"]
[Round "3.19"]
[White "Promyshlyanskiy, Vitaliy"]
[Black "Minor, Viatcheslav"]
[Result "1-0"]
[ECO "C07"]
[WhiteElo "2282"]
[BlackElo "2032"]
[Annotator "ChessBase"]
[PlyCount "82"]
[EventDate "2019.05.12"]
[EventType "swiss"]
[EventCountry "GER"]
[SourceTitle "playchess.com"]
[Source "ChessBase"]
[SourceQuality "1"]
[TimeControl "40/5400+30:900+30"]

1. e4 {[%emt 0:00:34]} e6 {[%emt 0:00:00]} 2. d4 {[%emt 0:00:08]} d5 {[%emt 0:00:00]} 3. Nd2 {[%emt 0:00:09]} c5 {[%emt 0:00:17]} 4. exd5 {[%emt 0:00:09]} Qxd5 {[%emt 0:00:08]} 5. Ngf3 {[%emt 0:00:44]} cxd4 {[%emt 0:00:07]} 6. Bc4 {[%emt 0:00:13]} Qd6 {[%emt 0:00:13]} 7. O-O {[%emt 0:00:31]} Nf6 {[%emt 0:00:07]} 8. Nb3 {[%emt 0:01:50]} Nc6 {[%emt 0:00:08]} 9. Nbxd4 {[%emt 0:00:25]} Nxd4 {[%emt 0:00:08]} 10. Nxd4 {[%emt 0:00:10]} a6 {[%emt 0:00:09]} 11. Re1 {[%emt 0:02:44]} Qc7 {[%emt 0:00:26]} 12. Qe2 {[%emt 0:01:53]} Bd6 {[%emt 0:00:15]} 13. Bg5 {[%emt 0:04:13]} O-O {[%emt 0:02:12]} 14. Bd3 {[%emt 0:02:21]} Nd5 {[%emt 0:03:46]} 15. g3 {[%emt 0:02:04]} b5 {[%emt 0:04:09]} 16. c3 {[%emt 0:21:25]} Bb7 {[%emt 0:03:29]} 17. a4 {[%emt 0:08:51]} b4 {[%emt 0:02:04]} 18. c4 {[%emt 0:00:32]} Nb6 {[%emt 0:03:45]} 19. Qh5 {[%emt 0:03:47]} g6 {[%emt 0:01:01]} 20. Qh4 {[%emt 0:04:18]} Rfe8 {[%emt 0:03:25]} 21. b3 {[%emt 0:15:19]} Nd7 {[%emt 0:04:38]} 22. Be4 {[%emt 0:02:43]} Nc5 {[%emt 0:02:27]} 23. Bxb7 {[%emt 0:00:21]} Qxb7 {[%emt 0:00:22]} 24. Re3 {[%emt 0:00:51]} e5 {[%emt 0:04:16]} 25. Rae1 {[%emt 0:04:56]} Qd7 {[%emt 0:10:09]} 26. Nc2 {[%emt 0:00:21]} Rab8 {[%emt 0:02:41]} 27. Rd1 {[%emt 0:06:39]} Qc7 {[%emt 0:06:33]} 28. g4 {[%emt 0:02:52]} Bf8 {[%emt 0:17:12]} 29. Rh3 {[%emt 0:01:58]} f6 {[%emt 0:09:52]} 30. Bxf6 {[%emt 0:00:15]} Ne4 {[%emt 0:01:10]} 31. Ne3 {[%emt 0:01:25]} Re6 {[%emt 0:02:05]} 32. Nd5 {[%emt 0:01:28]} Qa7 {[%emt 0:02:58]} 33. g5 {[%emt 0:00:31]} Nxf2 {[%emt 0:00:20]} 34. Qxf2 {[%emt 0:02:42]} Bc5 {[%emt 0:00:32]} 35. Ne3 {[%emt 0:00:18]} Rf8 {[%emt 0:02:58]} 36. Kg2 {[%emt 0:01:16]} Qb6 {[%emt 0:02:15]} 37. Qh4 {[%emt 0:01:17]} Qb7+ {[%emt 0:01:08]} 38. Rd5 {[%emt 0:01:18]} Rf7 {[%emt 0:00:23]} 39. Qe4 {[%emt 0:00:36]} Re8 {[%emt 0:00:11]} 40. Ng4 {[%emt 0:00:54]} Bf8 {[%emt 0:00:42]} 41. Re3 Bd6 1-0

[Event "Bamberg-Open 2019"]
[Site "Bamberg"]
[Date "2019.05.30"]
[Round "3.20"]
[White "Waffenschmidt, Joachim"]
[Black "Syperek, Sebastian"]
[Result "1/2-1/2"]
[ECO "E91"]
[WhiteElo "1983"]
[BlackElo "2184"]
[Annotator "ChessBase"]
[PlyCount "56"]
[EventDate "2019.05.12"]
[EventType "swiss"]
[EventCountry "GER"]
[SourceTitle "playchess.com"]
[Source "ChessBase"]
[SourceQuality "1"]
[TimeControl "40/5400+30:900+30"]

1. d4 {[%emt 0:00:00]} Nf6 {[%emt 0:00:00]} 2. c4 {[%emt 0:00:00]} g6 {[%emt 0:00:00]} 3. Nc3 {[%emt 0:00:00]} Bg7 {[%emt 0:00:03]} 4. e4 {[%emt 0:00:00]} d6 {[%emt 0:00:11]} 5. Nf3 {[%emt 0:00:00]} O-O {[%emt 0:00:11]} 6. Be2 {[%emt 0:00:01]} Nbd7 {[%emt 0:00:23]} 7. O-O {[%emt 0:00:13]} e5 {[%emt 0:00:16]} 8. Be3 {[%emt 0:00:20]} exd4 {[%emt 0:01:32]} 9. Nxd4 {[%emt 0:00:30]} Nc5 {[%emt 0:02:01]} 10. f3 {[%emt 0:09:21]} Re8 {[%emt 0:01:05]} 11. b4 {[%emt 0:06:42]} Ne6 {[%emt 0:00:47]} 12. Qd2 {[%emt 0:03:30]} Nxd4 {[%emt 0:02:28]} 13. Bxd4 {[%emt 0:01:05]} c6 {[%emt 0:04:42]} 14. Rfd1 {[%emt 0:04:05]} Qe7 {[%emt 0:01:43]} 15. Rac1 {[%emt 0:05:37]} Be6 {[%emt 0:08:07]} 16. Be3 {[%emt 0:05:59]} Red8 {[%emt 0:02:22]} 17. Bf1 {[%emt 0:09:35]} d5 {[%emt 0:03:09]} 18. cxd5 {[%emt 0:08:49]} cxd5 {[%emt 0:02:28]} 19. Bc5 {[%emt 0:01:42]} Qe8 {[%emt 0:02:42]} 20. Bb5 {[%emt 0:02:45]} dxe4 {[%emt 0:04:43]} 21. Qe3 {[%emt 0:24:40]} Bd7 {[%emt 0:01:51]} 22. Bxd7 {[%emt 0:02:17]} Rxd7 {[%emt 0:02:06]} 23. Bxa7 {[%emt 0:02:35]} exf3 {[%emt 0:04:36]} 24. Qxe8+ {[%emt 0:01:12]} Rxe8 {[%emt 0:00:30]} 25. gxf3 {[%emt 0:00:22]} Bh6 {[%emt 0:03:42]} 26. Rxd7 {[%emt 0:02:04]} Nxd7 {[%emt 0:01:00]} 27. Rd1 {[%emt 0:00:02]} Ne5 {[%emt 0:03:10]} 28. Kf2 {[%emt 0:01:07]} Bg7 {[%emt 0:06:25]} 1/2-1/2

[Event "Bamberg-Open 2019"]
[Site "Bamberg"]
[Date "2019.05.30"]
[Round "3.21"]
[White "Schmidt, Justus"]
[Black "Gass, Ulrich"]
[Result "1-0"]
[ECO "B06"]
[WhiteElo "2153"]
[BlackElo "2029"]
[Annotator "ChessBase"]
[PlyCount "41"]
[EventDate "2019.05.12"]
[EventType "swiss"]
[EventCountry "GER"]
[SourceTitle "playchess.com"]
[Source "ChessBase"]
[SourceQuality "1"]
[TimeControl "40/5400+30:900+30"]

1. e4 {[%emt 0:00:00]} g6 {[%emt 0:01:30]} 2. Nc3 {[%emt 0:00:20]} Bg7 {[%emt 0:00:12]} 3. g3 {[%emt 0:00:04]} e5 {[%emt 0:03:28]} 4. Bg2 {[%emt 0:00:40]} Nc6 {[%emt 0:00:23]} 5. d3 {[%emt 0:00:46]} Nge7 {[%emt 0:01:01]} 6. Bg5 {[%emt 0:04:32]} f6 {[%emt 0:05:23]} 7. Be3 {[%emt 0:01:32]} Nd4 {[%emt 0:01:36]} 8. Qd2 {[%emt 0:02:52]} d6 {[%emt 0:04:01]} 9. f4 {[%emt 0:06:25]} Be6 {[%emt 0:03:08]} 10. Nge2 {[%emt 0:06:18]} Nxe2 {[%emt 0:14:15]} 11. Nxe2 {[%emt 0:01:49]} Bh6 {[%emt 0:13:04]} 12. d4 {[%emt 0:04:41]} c6 {[%emt 0:06:55]} 13. O-O {[%emt 0:03:22]} exf4 {[%emt 0:12:08]} 14. Nxf4 {[%emt 0:04:25]} Bc4 {[%emt 0:03:01]} 15. Rf2 {[%emt 0:01:08]} Rf8 {[%emt 0:03:03]} 16. b3 {[%emt 0:06:55]} Bg8 {[%emt 0:00:25]} 17. Bh3 {[%emt 0:02:00]} f5 {[%emt 0:02:41]} 18. Re1 {[%emt 0:12:20]} fxe4 {[%emt 0:06:56]} 19. Nh5 {[%emt 0:04:43]} Rxf2 {[%emt 0:11:07]} 20. Qxf2 {[%emt 0:00:11]} Bxe3 {[%emt 0:00:12]} 21. Ng7# {[%emt 0:00:10]} 1-0

[Event "Bamberg-Open 2019"]
[Site "Bamberg"]
[Date "2019.05.30"]
[Round "3.22"]
[White "Ammon, Tobias"]
[Black "Mooser, Nicolas"]
[Result "1-0"]
[ECO "B40"]
[WhiteElo "2151"]
[BlackElo "2026"]
[Annotator "ChessBase"]
[PlyCount "95"]
[EventDate "2019.05.12"]
[EventType "swiss"]
[EventCountry "GER"]
[SourceTitle "playchess.com"]
[Source "ChessBase"]
[SourceQuality "1"]
[TimeControl "40/5400+30:900+30"]

1. e4 {[%emt 0:00:00]} c5 {[%emt 0:00:00]} 2. Nf3 {[%emt 0:00:00]} e6 {[%emt 0:00:00]} 3. c3 {[%emt 0:00:00]} Nf6 {[%emt 0:00:17]} 4. e5 {[%emt 0:00:00]} Nd5 {[%emt 0:00:13]} 5. Bc4 {[%emt 0:00:10]} d6 {[%emt 0:03:41]} 6. d4 {[%emt 0:02:29]} cxd4 {[%emt 0:00:12]} 7. cxd4 {[%emt 0:00:06]} Be7 {[%emt 0:00:18]} 8. O-O {[%emt 0:00:38]} O-O {[%emt 0:00:07]} 9. Qe2 {[%emt 0:03:16]} b6 {[%emt 0:01:35]} 10. Nc3 {[%emt 0:03:36]} Nxc3 {[%emt 0:01:31]} 11. bxc3 {[%emt 0:00:02]} Bb7 {[%emt 0:00:38]} 12. Bf4 {[%emt 0:08:49]} dxe5 {[%emt 0:05:11]} 13. Nxe5 {[%emt 0:01:13]} Nd7 {[%emt 0:03:06]} 14. Nxf7 {[%emt 0:05:27]} Rxf7 {[%emt 0:03:36]} 15. Qxe6 {[%emt 0:00:55]} Qe8 {[%emt 0:02:37]} 16. Rfe1 {[%emt 0:16:14]} Kf8 {[%emt 0:04:37]} 17. Re3 {[%emt 0:03:58]} Nf6 {[%emt 0:06:21]} 18. Rae1 {[%emt 0:02:09]} Ng8 {[%emt 0:07:39]} 19. Bd6 {[%emt 0:16:18]} Rd8 {[%emt 0:08:25]} 20. Bb4 {[%emt 0:02:58]} a5 {[%emt 0:08:05]} 21. Qxb6 {[%emt 0:07:17]} axb4 {[%emt 0:05:23]} 22. Qxb7 {[%emt 0:03:16]} bxc3 {[%emt 0:04:41]} 23. Qe4 {[%emt 0:03:42]} Rc8 {[%emt 0:07:14]} 24. Be6 {[%emt 0:04:24]} Nf6 {[%emt 0:02:01]} 25. Qf5 {[%emt 0:01:04]} Rc7 {[%emt 0:03:00]} 26. Rc1 {[%emt 0:04:40]} Qa4 {[%emt 0:07:44]} 27. Qc2 {[%emt 0:05:15]} Qxd4 {[%emt 0:02:23]} 28. Bxf7 {[%emt 0:00:09]} Kxf7 {[%emt 0:00:37]} 29. Rxc3 {[%emt 0:00:22]} Rxc3 {[%emt 0:03:31]} 30. Qxc3 {[%emt 0:00:03]} Qxc3 {[%emt 0:00:22]} 31. Rxc3 {[%emt 0:00:02]} Nd5 {[%emt 0:00:46]} 32. Rb3 {[%emt 0:01:05]} Ke6 {[%emt 0:00:57]} 33. a4 {[%emt 0:00:26]} Bb4 {[%emt 0:00:35]} 34. g3 {[%emt 0:01:26]} Kd6 {[%emt 0:01:19]} 35. Rf3 {[%emt 0:00:41]} Kc6 {[%emt 0:02:55]} 36. Rf7 {[%emt 0:00:45]} Bc3 {[%emt 0:00:41]} 37. Kg2 {[%emt 0:00:52]} Kb6 {[%emt 0:01:47]} 38. Kf3 {[%emt 0:00:58]} Bf6 {[%emt 0:00:41]} 39. h4 {[%emt 0:01:41]} Nc3 {[%emt 0:02:26]} 40. h5 {[%emt 0:01:22]} h6 {[%emt 0:00:45]} 41. Rxf6+ {[%emt 0:04:53]} gxf6 {[%emt 0:00:14]} 42. Kf4 {[%emt 0:00:28]} Nxa4 {[%emt 0:01:33]} 43. Kf5 {[%emt 0:00:15]} Nc5 {[%emt 0:03:04]} 44. Kxf6 {[%emt 0:02:44]} Kc6 {[%emt 0:00:58]} 45. Kg6 {[%emt 0:00:09]} Kd7 {[%emt 0:00:38]} 46. Kxh6 {[%emt 0:00:07]} Ke7 {[%emt 0:00:07]} 47. Kg7 {[%emt 0:01:50]} Ne6+ {[%emt 0:00:04]} 48. Kg8 1-0

[Event "Bamberg-Open 2019"]
[Site "Bamberg"]
[Date "2019.05.30"]
[Round "3.23"]
[White "Miettinen, Teemu"]
[Black "Korolev, Alexandr"]
[Result "1/2-1/2"]
[ECO "C45"]
[WhiteElo "2017"]
[BlackElo "2143"]
[Annotator "ChessBase"]
[PlyCount "50"]
[EventDate "2019.05.12"]
[EventType "swiss"]
[EventCountry "GER"]
[SourceTitle "playchess.com"]
[Source "ChessBase"]
[SourceQuality "1"]
[TimeControl "40/5400+30:900+30"]

1. e4 {[%emt 0:00:00]} e5 {[%emt 0:00:15]} 2. Nf3 {[%emt 0:00:00]} Nc6 {[%emt 0:00:17]} 3. d4 {[%emt 0:00:11]} exd4 {[%emt 0:00:09]} 4. Nxd4 {[%emt 0:00:06]} Bc5 {[%emt 0:00:54]} 5. Nxc6 {[%emt 0:00:07]} Qf6 {[%emt 0:00:35]} 6. Qf3 {[%emt 0:00:51]} Qxf3 {[%emt 0:00:58]} 7. gxf3 {[%emt 0:00:09]} bxc6 {[%emt 0:02:00]} 8. Be3 {[%emt 0:00:33]} Bb6 {[%emt 0:00:58]} 9. Nc3 {[%emt 0:09:04]} Ne7 {[%emt 0:01:14]} 10. Bc4 {[%emt 0:10:10]} d6 {[%emt 0:02:18]} 11. Rg1 {[%emt 0:01:45]} Ng6 {[%emt 0:01:38]} 12. Ke2 {[%emt 0:06:09]} f5 {[%emt 0:03:20]} 13. h4 {[%emt 0:09:35]} Ne5 {[%emt 0:03:24]} 14. Bd3 {[%emt 0:00:17]} Kf7 {[%emt 0:04:35]} 15. f4 {[%emt 0:02:56]} Nxd3 {[%emt 0:05:51]} 16. cxd3 {[%emt 0:00:02]} Ba6 {[%emt 0:10:57]} 17. Bxb6 {[%emt 0:00:59]} cxb6 {[%emt 0:02:03]} 18. Ke3 {[%emt 0:00:08]} Rae8 {[%emt 0:04:56]} 19. f3 {[%emt 0:04:40]} d5 {[%emt 0:06:22]} 20. Rad1 {[%emt 0:04:06]} Re6 {[%emt 0:04:58]} 21. Rg5 {[%emt 0:09:31]} g6 {[%emt 0:02:35]} 22. e5 {[%emt 0:07:35]} h6 {[%emt 0:05:21]} 23. Rg2 {[%emt 0:00:41]} Rg8 {[%emt 0:01:09]} 24. d4 {[%emt 0:00:15]} Bb7 {[%emt 0:04:00]} 25. Rdg1 {[%emt 0:02:56]} h5 {[%emt 0:03:52] Ke4} 1/2-1/2

[Event "Bamberg-Open 2019"]
[Site "Bamberg"]
[Date "2019.05.30"]
[Round "3.24"]
[White "Schnicke, Robert"]
[Black "Rempeli, Alex"]
[Result "1/2-1/2"]
[ECO "C11"]
[WhiteElo "2127"]
[BlackElo "2016"]
[Annotator "ChessBase"]
[PlyCount "81"]
[EventDate "2019.05.12"]
[EventType "swiss"]
[EventCountry "GER"]
[SourceTitle "playchess.com"]
[Source "ChessBase"]
[SourceQuality "1"]
[TimeControl "40/5400+30:900+30"]

1. e4 {[%emt 0:00:00]} e6 {[%emt 0:00:00]} 2. d4 {[%emt 0:00:00]} d5 {[%emt 0:00:00]} 3. Nc3 {[%emt 0:00:00]} Nf6 {[%emt 0:00:00]} 4. e5 {[%emt 0:01:41]} Nfd7 {[%emt 0:00:07]} 5. Nce2 {[%emt 0:00:10]} c5 {[%emt 0:00:23]} 6. c3 {[%emt 0:00:22]} Nc6 {[%emt 0:00:25]} 7. f4 {[%emt 0:00:21]} Qb6 {[%emt 0:01:41]} 8. Nf3 {[%emt 0:00:42]} f6 {[%emt 0:02:17]} 9. f5 {[%emt 0:11:33]} cxd4 {[%emt 0:06:17]} 10. cxd4 {[%emt 0:11:08]} fxe5 {[%emt 0:10:52]} 11. fxe6 {[%emt 0:01:32]} Nf6 {[%emt 0:01:04]} 12. Nxe5 {[%emt 0:04:49]} Bb4+ {[%emt 0:07:23]} 13. Bd2 {[%emt 0:02:49]} Ne4 {[%emt 0:13:46]} 14. Bxb4 {[%emt 0:00:34]} Qxb4+ {[%emt 0:05:08]} 15. Nc3 {[%emt 0:00:08]} Nxe5 {[%emt 0:06:56]} 16. Qh5+ {[%emt 0:01:21]} Ng6 {[%emt 0:01:39]} 17. Bb5+ {[%emt 0:00:17]} Ke7 {[%emt 0:02:09]} 18. O-O {[%emt 0:07:15]} Qxd4+ {[%emt 0:12:56]} 19. Kh1 {[%emt 0:00:08]} Bxe6 {[%emt 0:00:24]} 20. Nxe4 {[%emt 0:00:51]} Qxe4 {[%emt 0:07:57]} 21. Rae1 {[%emt 0:00:35]} Qd4 {[%emt 0:05:22]} 22. Qh3 {[%emt 0:23:40]} Qb6 {[%emt 0:01:09]} 23. Qa3+ {[%emt 0:01:12]} Kd8 {[%emt 0:03:55]} 24. Bd3 {[%emt 0:00:17]} Re8 {[%emt 0:02:04]} 25. Bxg6 {[%emt 0:02:02]} hxg6 {[%emt 0:00:31]} 26. Qg3 {[%emt 0:05:28]} Bf5 {[%emt 0:04:23]} 27. Rxe8+ {[%emt 0:00:26]} Kxe8 {[%emt 0:00:07]} 28. Qe5+ {[%emt 0:00:28]} Qe6 {[%emt 0:01:26]} 29. Rxf5 {[%emt 0:00:44]} Qxe5 {[%emt 0:00:40]} 30. Rxe5+ {[%emt 0:00:09]} Kf7 {[%emt 0:00:03]} 31. Rxd5 {[%emt 0:00:11]} Rc8 {[%emt 0:00:42]} 32. h3 {[%emt 0:00:27]} Ke6 {[%emt 0:00:41]} 33. Rb5 {[%emt 0:00:57]} b6 {[%emt 0:01:07]} 34. Kh2 {[%emt 0:01:16]} Kf6 {[%emt 0:01:28]} 35. Kg3 {[%emt 0:02:13]} Rc2 {[%emt 0:00:56]} 36. Kf3 {[%emt 0:02:10]} Rd2 {[%emt 0:00:44]} 37. a4 {[%emt 0:01:24]} g5 {[%emt 0:00:26]} 38. b3 {[%emt 0:06:46]} Rb2 {[%emt 0:00:37]} 39. g3 {[%emt 0:00:51]} Rd2 {[%emt 0:00:24]} 40. b4 {[%emt 0:04:44]} Rd3+ {[%emt 0:00:24]} 41. Ke4 {Ke5+} 1/2-1/2

[Event "Bamberg-Open 2019"]
[Site "Bamberg"]
[Date "2019.05.30"]
[Round "3.25"]
[White "Ziegenfuss, Holger"]
[Black "Boehme, Markus"]
[Result "1-0"]
[ECO "B54"]
[WhiteElo "2006"]
[BlackElo "2118"]
[Annotator "ChessBase"]
[PlyCount "95"]
[EventDate "2019.05.12"]
[EventType "swiss"]
[EventCountry "GER"]
[SourceTitle "playchess.com"]
[Source "ChessBase"]
[SourceQuality "1"]
[TimeControl "40/5400+30:900+30"]

1. e4 {[%emt 0:00:00]} c5 {[%emt 0:00:00]} 2. Nf3 {[%emt 0:00:00]} d6 {[%emt 0:00:00]} 3. d4 {[%emt 0:00:00]} cxd4 {[%emt 0:00:00]} 4. Nxd4 {[%emt 0:00:00]} Nf6 {[%emt 0:00:00]} 5. f3 {[%emt 0:00:01]} Nc6 {[%emt 0:00:24]} 6. c4 {[%emt 0:00:32]} e6 {[%emt 0:00:22]} 7. Nc3 {[%emt 0:00:36]} Be7 {[%emt 0:00:12]} 8. Be3 {[%emt 0:05:13]} O-O {[%emt 0:00:09]} 9. Nc2 {[%emt 0:04:40]} Qa5 {[%emt 0:14:48]} 10. Qd2 {[%emt 0:00:18]} Rd8 {[%emt 0:03:34]} 11. O-O-O {[%emt 0:08:56]} a6 {[%emt 0:09:19]} 12. Kb1 {[%emt 0:00:21]} Rb8 {[%emt 0:02:21]} 13. Nd4 {[%emt 0:09:16]} Qc7 {[%emt 0:09:00]} 14. Rc1 {[%emt 0:03:30]} Qd7 {[%emt 0:15:52]} 15. g4 {[%emt 0:01:55]} Nxd4 {[%emt 0:03:20]} 16. Bxd4 {[%emt 0:01:48]} b5 {[%emt 0:01:53]} 17. g5 {[%emt 0:04:40]} Nh5 {[%emt 0:03:47]} 18. Be3 {[%emt 0:06:34]} d5 {[%emt 0:08:07]} 19. cxd5 {[%emt 0:05:11]} b4 {[%emt 0:00:17]} 20. Ne2 {[%emt 0:00:46]} exd5 {[%emt 0:00:31]} 21. Nd4 {[%emt 0:17:20]} Bb7 {[%emt 0:10:17]} 22. e5 {[%emt 0:00:51]} g6 {[%emt 0:01:27]} 23. h4 {[%emt 0:02:27]} Rdc8 {[%emt 0:08:45]} 24. Bh3 {[%emt 0:08:16]} Rxc1+ {[%emt 0:00:03]} 25. Qxc1 {[%emt 0:00:09]} Qe8 {[%emt 0:01:03]} 26. Qc7 {[%emt 0:07:32]} Qd8 {[%emt 0:01:36]} 27. Qc2 {[%emt 0:00:29]} Qe8 {[%emt 0:00:21]} 28. Rc1 {[%emt 0:00:25]} Ng7 {[%emt 0:00:55]} 29. Bf4 {[%emt 0:04:38]} Rd8 {[%emt 0:02:11]} 30. Qc7 {[%emt 0:01:08]} Ba8 {[%emt 0:00:06]} 31. Qa7 {[%emt 0:01:13]} Bf8 {[%emt 0:02:19]} 32. Qxa6 {[%emt 0:00:57]} Nh5 {[%emt 0:00:15]} 33. Bh2 {[%emt 0:00:52]} Bg7 {[%emt 0:00:10]} 34. f4 {[%emt 0:00:53]} f6 {[%emt 0:00:34]} 35. Qe6+ {[%emt 0:01:52]} Kh8 {[%emt 0:00:14]} 36. exf6 {[%emt 0:00:56]} Bf8 {[%emt 0:00:10]} 37. Rc7 {[%emt 0:01:27]} Qa4 {[%emt 0:00:39]} 38. b3 {[%emt 0:00:23]} Qe8 {[%emt 0:00:48]} 39. f7 {[%emt 0:02:20]} Qxe6 {[%emt 0:00:17]} 40. Nxe6 {[%emt 0:00:15]} Rb8 {[%emt 0:00:15]} 41. Nxf8 {[%emt 0:16:16]} Rxf8 {[%emt 0:15:07]} 42. Bg1 {[%emt 0:00:30]} d4 {[%emt 0:00:34]} 43. Bxd4+ {[%emt 0:00:22]} Ng7 {[%emt 0:00:04]} 44. Re7 {[%emt 0:00:00]} Bc6 {[%emt 0:00:00]} 45. Bd7 {[%emt 0:00:00]} Bxd7 {[%emt 0:00:00]} 46. Rxd7 {[%emt 0:00:00]} h5 {[%emt 0:00:00]} 47. gxh6 {[%emt 0:00:00]} g5 {[%emt 0:00:00]} 48. hxg7+ {[%emt 0:00:00]} 1-0